[Event "Titled Tuesday Blitz July 6 2021"]
[White "Leve, Nitai"]
[Black "Hebden, Mark L"]
[WhiteFideId "2006898"]
[BlackFideId "400084"]
[WhiteElo "2144"]
[BlackElo "2457"]
[Result "0-1"]
[Round "10"]
[TimeControl "180+1"]
[Date "2021.07.06"]
[WhiteClock "0:00:06"]
[BlackClock "0:01:07"]

1. e4 {[%clk 0:03:00]}  e5 {[%clk 0:02:59]} 2. Nf3 {[%clk 0:03:00]}  Nc6 {[%clk 0:03:00]} 3. Bb5 {[%clk 0:03:01]}  a6 {[%clk 0:02:59]} 4. Ba4 {[%clk 0:03:01]}  Nf6 {[%clk 0:02:59]} 5. d4 {[%clk 0:03:00]}  exd4 {[%clk 0:02:59]} 6. O-O {[%clk 0:03:00]}  Be7 {[%clk 0:02:58]} 7. Re1 {[%clk 0:03:00]}  b5 {[%clk 0:02:58]} 8. Bb3 {[%clk 0:03:00]}  d6 {[%clk 0:02:57]} 9. Bd5 {[%clk 0:03:00]}  Nxd5 {[%clk 0:02:56]} 10. exd5 {[%clk 0:03:01]}  Ne5 {[%clk 0:02:56]} 11. Nxd4 {[%clk 0:03:01]}  Bd7 {[%clk 0:02:55]} 12. Nc3 {[%clk 0:02:41]}  O-O {[%clk 0:02:54]} 13. a4 {[%clk 0:02:35]}  b4 {[%clk 0:02:53]} 14. Ne4 {[%clk 0:02:35]}  f5 {[%clk 0:02:41]} 15. Ng3 {[%clk 0:02:32]}  g6 {[%clk 0:02:32]} 16. Qd2 {[%clk 0:01:54]}  Rb8 {[%clk 0:02:29]} 17. Qh6 {[%clk 0:01:52]}  Bf6 {[%clk 0:02:27]} 18. Qf4 {[%clk 0:01:45]}  Re8 {[%clk 0:02:14]} 19. Bd2 {[%clk 0:01:41]}  Nc4 {[%clk 0:02:10]} 20. Nc6 {[%clk 0:01:24]}  Bxc6 {[%clk 0:02:04]} 21. Qxc4 {[%clk 0:01:24]}  Rxe1+ {[%clk 0:01:56]} 22. Rxe1 {[%clk 0:01:22]}  Bxa4 {[%clk 0:01:55]} 23. Bxb4 {[%clk 0:01:11]}  Bxb2 {[%clk 0:01:50]} 24. Ba5 {[%clk 0:00:57]}  Bb5 {[%clk 0:01:44]} 25. Qxc7 {[%clk 0:00:56]}  Qxc7 {[%clk 0:01:31]} 26. Bxc7 {[%clk 0:00:56]}  Rc8 {[%clk 0:01:31]} 27. Bxd6 {[%clk 0:00:55]}  Rxc2 {[%clk 0:01:31]} 28. Bf4 {[%clk 0:00:42]}  Rc4 {[%clk 0:01:16]} 29. Be3 {[%clk 0:00:26]}  f4 {[%clk 0:01:12]} 30. Rb1 {[%clk 0:00:14]}  fxe3 {[%clk 0:01:11]} 31. fxe3 {[%clk 0:00:13]}  Rc1+ {[%clk 0:01:10]} 32. Rxc1 {[%clk 0:00:12]}  Bxc1 {[%clk 0:01:10]} 33. e4 {[%clk 0:00:13]}  Be3+ {[%clk 0:01:07]} 34. Kh1 {[%clk 0:00:06]}  Bf4 {[%clk 0:01:07]} 0-1


[Site "https://www.chess.com"]

[Event "Titled Tuesday Blitz July 6 2021"]
[White "Malka, Samuel"]
[Black "Potapova, Margarita"]
[WhiteFideId "20643675"]
[BlackFideId "14126869"]
[WhiteElo "2470"]
[BlackElo "2229"]
[Result "1-0"]
[Round "10"]
[TimeControl "180+1"]
[Date "2021.07.06"]
[WhiteClock "0:00:02"]
[BlackClock "0:00:09"]

1. d4 {[%clk 0:03:00]}  Nf6 {[%clk 0:03:00]} 2. c4 {[%clk 0:02:55]}  e6 {[%clk 0:03:00]} 3. g3 {[%clk 0:02:55]}  d5 {[%clk 0:02:59]} 4. Bg2 {[%clk 0:02:56]}  dxc4 {[%clk 0:02:59]} 5. Nf3 {[%clk 0:02:56]}  a6 {[%clk 0:02:59]} 6. O-O {[%clk 0:02:51]}  Nc6 {[%clk 0:02:59]} 7. Nc3 {[%clk 0:02:49]}  Rb8 {[%clk 0:02:56]} 8. e4 {[%clk 0:02:49]}  Be7 {[%clk 0:02:55]} 9. Qe2 {[%clk 0:02:10]}  b5 {[%clk 0:02:53]} 10. Rd1 {[%clk 0:02:08]}  Nb4 {[%clk 0:02:47]} 11. b3 {[%clk 0:02:06]}  cxb3 {[%clk 0:02:46]} 12. d5 {[%clk 0:01:58]}  exd5 {[%clk 0:02:38]} 13. a3 {[%clk 0:01:52]}  Nc2 {[%clk 0:02:34]} 14. Rb1 {[%clk 0:01:46]}  b4 {[%clk 0:01:50]} 15. Nxd5 {[%clk 0:01:41]}  Nxd5 {[%clk 0:01:42]} 16. Rxd5 {[%clk 0:01:42]}  Bd7 {[%clk 0:01:41]} 17. Rxb3 {[%clk 0:01:37]}  Nxa3 {[%clk 0:01:41]} 18. Ne5 {[%clk 0:01:27]}  Bd6 {[%clk 0:01:39]} 19. Nxd7 {[%clk 0:01:16]}  Qxd7 {[%clk 0:01:38]} 20. e5 {[%clk 0:01:17]}  O-O {[%clk 0:01:34]} 21. exd6 {[%clk 0:01:17]}  cxd6 {[%clk 0:01:34]} 22. Bxa3 {[%clk 0:01:12]}  bxa3 {[%clk 0:01:33]} 23. Rxa3 {[%clk 0:01:13]}  Rb1+ {[%clk 0:01:32]} 24. Rd1 {[%clk 0:01:13]}  Rfb8 {[%clk 0:01:30]} 25. Rxa6 {[%clk 0:01:03]}  Qe6 {[%clk 0:01:06]} 26. Qd3 {[%clk 0:00:47]}  Qg6 {[%clk 0:00:43]} 27. Rxd6 {[%clk 0:00:33]}  Qxd3 {[%clk 0:00:25]} 28. Rxd3 {[%clk 0:00:32]}  h5 {[%clk 0:00:26]} 29. h4 {[%clk 0:00:29]}  g6 {[%clk 0:00:25]} 30. Bd5 {[%clk 0:00:28]}  Kg7 {[%clk 0:00:26]} 31. Kg2 {[%clk 0:00:29]}  R1b2 {[%clk 0:00:25]} 32. R1d2 {[%clk 0:00:28]}  Rb1 {[%clk 0:00:25]} 33. Rf3 {[%clk 0:00:29]}  Rf8 {[%clk 0:00:23]} 34. Ra2 {[%clk 0:00:26]}  Rd1 {[%clk 0:00:22]} 35. Bb3 {[%clk 0:00:25]}  Rd7 {[%clk 0:00:23]} 36. Ra6 {[%clk 0:00:23]}  Re7 {[%clk 0:00:22]} 37. Rb6 {[%clk 0:00:21]}  Rc8 {[%clk 0:00:22]} 38. Rbf6 {[%clk 0:00:19]}  Rcc7 {[%clk 0:00:22]} 39. R3f4 {[%clk 0:00:18]}  Rb7 {[%clk 0:00:23]} 40. Rf3 {[%clk 0:00:18]}  Rbc7 {[%clk 0:00:23]} 41. R6f4 {[%clk 0:00:18]}  Rb7 {[%clk 0:00:23]} 42. Bd5 {[%clk 0:00:17]}  Rbd7 {[%clk 0:00:23]} 43. Rd4 {[%clk 0:00:17]}  Ra7 {[%clk 0:00:23]} 44. Rfd3 {[%clk 0:00:17]}  Rac7 {[%clk 0:00:23]} 45. Bb3 {[%clk 0:00:17]}  Ra7 {[%clk 0:00:24]} 46. Ba4 {[%clk 0:00:17]}  Rec7 {[%clk 0:00:20]} 47. Rd7 {[%clk 0:00:15]}  Rxd7 {[%clk 0:00:20]} 48. Bxd7 {[%clk 0:00:14]}  Rc7 {[%clk 0:00:20]} 49. Ba4 {[%clk 0:00:14]}  Re7 {[%clk 0:00:21]} 50. Bb3 {[%clk 0:00:14]}  Ra7 {[%clk 0:00:21]} 51. Rf3 {[%clk 0:00:14]}  Rc7 {[%clk 0:00:22]} 52. Re3 {[%clk 0:00:14]}  Rd7 {[%clk 0:00:22]} 53. Bc2 {[%clk 0:00:14]}  Rc7 {[%clk 0:00:23]} 54. Be4 {[%clk 0:00:15]}  Rd7 {[%clk 0:00:23]} 55. Bf3 {[%clk 0:00:16]}  Rc7 {[%clk 0:00:23]} 56. Be2 {[%clk 0:00:16]}  Rd7 {[%clk 0:00:23]} 57. f3 {[%clk 0:00:16]}  Rc7 {[%clk 0:00:24]} 58. g4 {[%clk 0:00:17]}  hxg4 {[%clk 0:00:23]} 59. fxg4 {[%clk 0:00:17]}  Rd7 {[%clk 0:00:24]} 60. Kg3 {[%clk 0:00:16]}  Rc7 {[%clk 0:00:24]} 61. Bf3 {[%clk 0:00:17]}  Ra7 {[%clk 0:00:25]} 62. Rb3 {[%clk 0:00:17]}  Rc7 {[%clk 0:00:25]} 63. Rb7 {[%clk 0:00:18]}  Rc5 {[%clk 0:00:24]} 64. Rd7 {[%clk 0:00:16]}  Rc3 {[%clk 0:00:22]} 65. h5 {[%clk 0:00:13]}  gxh5 {[%clk 0:00:21]} 66. gxh5 {[%clk 0:00:14]}  Ra3 {[%clk 0:00:15]} 67. Kh4 {[%clk 0:00:13]}  Ra4+ {[%clk 0:00:15]} 68. Kg3 {[%clk 0:00:09]}  Ra3 {[%clk 0:00:15]} 69. Kf4 {[%clk 0:00:09]}  Ra4+ {[%clk 0:00:15]} 70. Be4 {[%clk 0:00:10]}  Kh6 {[%clk 0:00:12]} 71. Rxf7 {[%clk 0:00:08]}  Ra7 {[%clk 0:00:12]} 72. Rf6+ {[%clk 0:00:02]}  Kxh5 {[%clk 0:00:10]} 73. Bf3+ {[%clk 0:00:02]}  Kh4 {[%clk 0:00:09]} 74. Rh6# {[%clk 0:00:02]} 1-0


[Site "https://www.chess.com"]

[Event "Titled Tuesday Blitz July 6 2021"]
[White "Mons, Leon"]
[Black "Vlachos, Anatole"]
[WhiteFideId "4614950"]
[BlackFideId "26093189"]
[WhiteElo "2492"]
[BlackElo "2350"]
[Result "1/2-1/2"]
[Round "10"]
[TimeControl "180+1"]
[Date "2021.07.06"]
[WhiteClock "0:00:16"]
[BlackClock "0:00:09"]

1. d4 {[%clk 0:03:00]}  f5 {[%clk 0:02:59]} 2. Nc3 {[%clk 0:02:57]}  Nf6 {[%clk 0:02:59]} 3. Bg5 {[%clk 0:02:57]}  d5 {[%clk 0:02:59]} 4. Bxf6 {[%clk 0:02:57]}  exf6 {[%clk 0:03:00]} 5. e3 {[%clk 0:02:58]}  Be6 {[%clk 0:03:01]} 6. Bd3 {[%clk 0:02:55]}  Nc6 {[%clk 0:02:58]} 7. h4 {[%clk 0:02:55]}  h5 {[%clk 0:02:56]} 8. Nh3 {[%clk 0:02:49]}  Qd7 {[%clk 0:02:56]} 9. Nf4 {[%clk 0:02:48]}  Bf7 {[%clk 0:02:56]} 10. Qf3 {[%clk 0:02:46]}  O-O-O {[%clk 0:02:56]} 11. O-O-O {[%clk 0:02:39]}  Ne7 {[%clk 0:02:51]} 12. Nce2 {[%clk 0:02:36]}  c6 {[%clk 0:02:49]} 13. Kb1 {[%clk 0:02:35]}  Kb8 {[%clk 0:02:48]} 14. Rc1 {[%clk 0:02:34]}  Nc8 {[%clk 0:02:44]} 15. c4 {[%clk 0:02:33]}  dxc4 {[%clk 0:02:42]} 16. Bxc4 {[%clk 0:02:34]}  Bxc4 {[%clk 0:02:30]} 17. Rxc4 {[%clk 0:02:35]}  Nd6 {[%clk 0:02:30]} 18. Rc2 {[%clk 0:02:35]}  Ne4 {[%clk 0:02:31]} 19. Nc3 {[%clk 0:02:31]}  Qe8 {[%clk 0:02:28]} 20. Nxe4 {[%clk 0:02:16]}  fxe4 {[%clk 0:02:24]} 21. Qh3 {[%clk 0:02:11]}  Bd6 {[%clk 0:02:21]} 22. Ne6 {[%clk 0:02:10]}  Rd7 {[%clk 0:02:21]} 23. Rhc1 {[%clk 0:02:09]}  Re7 {[%clk 0:02:12]} 24. Nc5 {[%clk 0:01:50]}  Qc8 {[%clk 0:02:10]} 25. Qh1 {[%clk 0:01:43]}  Qf5 {[%clk 0:02:09]} 26. Qe1 {[%clk 0:01:33]}  Rd8 {[%clk 0:01:59]} 27. Rc3 {[%clk 0:01:27]}  Bxc5 {[%clk 0:01:32]} 28. Rxc5 {[%clk 0:01:28]}  Rd5 {[%clk 0:01:33]} 29. Qa5 {[%clk 0:01:11]}  Red7 {[%clk 0:01:28]} 30. Rxd5 {[%clk 0:01:06]}  Rxd5 {[%clk 0:01:29]} 31. Qb4 {[%clk 0:01:04]}  Qxf2 {[%clk 0:01:20]} 32. Qf8+ {[%clk 0:01:03]}  Kc7 {[%clk 0:01:20]} 33. Qxg7+ {[%clk 0:00:59]}  Rd7 {[%clk 0:01:12]} 34. Qh6 {[%clk 0:00:56]}  Rd5 {[%clk 0:01:03]} 35. Qh7+ {[%clk 0:00:49]}  Kb6 {[%clk 0:01:01]} 36. Qxe4 {[%clk 0:00:41]}  Rb5 {[%clk 0:01:02]} 37. b3 {[%clk 0:00:40]}  Ra5 {[%clk 0:01:01]} 38. Rc2 {[%clk 0:00:39]}  Qe1+ {[%clk 0:00:53]} 39. Kb2 {[%clk 0:00:39]}  Qb4 {[%clk 0:00:54]} 40. Qd3 {[%clk 0:00:33]}  Qa3+ {[%clk 0:00:51]} 41. Kb1 {[%clk 0:00:33]}  f5 {[%clk 0:00:43]} 42. Qc3 {[%clk 0:00:31]}  Rd5 {[%clk 0:00:39]} 43. Qc4 {[%clk 0:00:26]}  Qe7 {[%clk 0:00:36]} 44. Qe2 {[%clk 0:00:26]}  Qxh4 {[%clk 0:00:35]} 45. Qf3 {[%clk 0:00:26]}  Qe4 {[%clk 0:00:32]} 46. Qxe4 {[%clk 0:00:25]}  fxe4 {[%clk 0:00:33]} 47. Rf2 {[%clk 0:00:26]}  Rg5 {[%clk 0:00:33]} 48. Kc2 {[%clk 0:00:25]}  Rg3 {[%clk 0:00:30]} 49. Kd2 {[%clk 0:00:26]}  a5 {[%clk 0:00:29]} 50. a3 {[%clk 0:00:25]}  a4 {[%clk 0:00:27]} 51. bxa4 {[%clk 0:00:20]}  Ka5 {[%clk 0:00:27]} 52. Rf4 {[%clk 0:00:20]}  Rxg2+ {[%clk 0:00:26]} 53. Kc3 {[%clk 0:00:20]}  Kxa4 {[%clk 0:00:26]} 54. Rxe4 {[%clk 0:00:20]}  Kxa3 {[%clk 0:00:27]} 55. Re7 {[%clk 0:00:20]}  Rg3 {[%clk 0:00:22]} 56. Rxb7 {[%clk 0:00:15]}  Rxe3+ {[%clk 0:00:21]} 57. Kd2 {[%clk 0:00:16]}  Re6 {[%clk 0:00:16]} 58. Kc3 {[%clk 0:00:15]}  Ka4 {[%clk 0:00:16]} 59. Kc4 {[%clk 0:00:16]}  Ka5 {[%clk 0:00:15]} 60. Rh7 {[%clk 0:00:16]}  Rd6 {[%clk 0:00:10]} 61. Rxh5+ {[%clk 0:00:16]}  Kb6 {[%clk 0:00:10]} 62. Rc5 {[%clk 0:00:16]}  Kc7 {[%clk 0:00:09]} 1/2-1/2


[Site "https://www.chess.com"]

[Event "Titled Tuesday Blitz July 6 2021"]
[White "Moroni, Luca Jr"]
[Black "Krivonosov, Oleg"]
[WhiteFideId "865834"]
[BlackFideId "11600349"]
[WhiteElo "2491"]
[BlackElo "2469"]
[Result "1/2-1/2"]
[Round "10"]
[TimeControl "180+1"]
[Date "2021.07.06"]
[WhiteClock "0:00:20"]
[BlackClock "0:00:55"]

1. d4 {[%clk 0:03:00]}  d5 {[%clk 0:02:58]} 2. c4 {[%clk 0:03:00]}  e6 {[%clk 0:02:58]} 3. Nc3 {[%clk 0:03:01]}  Be7 {[%clk 0:02:57]} 4. cxd5 {[%clk 0:03:00]}  exd5 {[%clk 0:02:57]} 5. Bf4 {[%clk 0:03:01]}  Nf6 {[%clk 0:02:55]} 6. e3 {[%clk 0:03:01]}  O-O {[%clk 0:02:56]} 7. Bd3 {[%clk 0:03:01]}  c5 {[%clk 0:02:56]} 8. Nge2 {[%clk 0:03:00]}  Nc6 {[%clk 0:02:55]} 9. dxc5 {[%clk 0:03:00]}  Bxc5 {[%clk 0:02:54]} 10. O-O {[%clk 0:03:00]}  d4 {[%clk 0:02:54]} 11. Na4 {[%clk 0:02:59]}  Bd6 {[%clk 0:02:54]} 12. Bxd6 {[%clk 0:02:54]}  Qxd6 {[%clk 0:02:53]} 13. exd4 {[%clk 0:02:51]}  Rd8 {[%clk 0:02:50]} 14. Nac3 {[%clk 0:02:29]}  Nxd4 {[%clk 0:02:46]} 15. Nb5 {[%clk 0:02:25]}  Nxb5 {[%clk 0:02:40]} 16. Bxb5 {[%clk 0:02:24]}  Qxd1 {[%clk 0:02:33]} 17. Rfxd1 {[%clk 0:02:25]}  Be6 {[%clk 0:02:32]} 18. Nd4 {[%clk 0:02:19]}  Bd5 {[%clk 0:02:28]} 19. Nf5 {[%clk 0:02:19]}  Kf8 {[%clk 0:02:26]} 20. Ne3 {[%clk 0:02:18]}  Be6 {[%clk 0:02:25]} 21. Bc4 {[%clk 0:02:11]}  Bxc4 {[%clk 0:02:19]} 22. Nxc4 {[%clk 0:02:11]}  Rac8 {[%clk 0:02:18]} 23. Ne3 {[%clk 0:02:11]}  g6 {[%clk 0:02:14]} 24. g4 {[%clk 0:02:02]}  h6 {[%clk 0:02:07]} 25. Kg2 {[%clk 0:02:01]}  Ke7 {[%clk 0:02:04]} 26. Kf3 {[%clk 0:02:00]}  Rxd1 {[%clk 0:01:59]} 27. Rxd1 {[%clk 0:01:59]}  Rc5 {[%clk 0:01:58]} 28. h4 {[%clk 0:01:57]}  h5 {[%clk 0:01:41]} 29. g5 {[%clk 0:01:55]}  Ng4 {[%clk 0:01:37]} 30. Nd5+ {[%clk 0:01:17]}  Ke6 {[%clk 0:01:32]} 31. Nf4+ {[%clk 0:01:17]}  Ke7 {[%clk 0:01:32]} 32. Rd2 {[%clk 0:01:15]}  Ne5+ {[%clk 0:01:17]} 33. Kg3 {[%clk 0:01:13]}  Rc1 {[%clk 0:01:07]} 34. Re2 {[%clk 0:01:10]}  Kd6 {[%clk 0:01:03]} 35. Rd2+ {[%clk 0:00:32]}  Ke7 {[%clk 0:01:02]} 36. Kg2 {[%clk 0:00:24]}  Rc4 {[%clk 0:00:57]} 37. Kg3 {[%clk 0:00:20]}  Rc1 {[%clk 0:00:55]} 1/2-1/2


[Site "https://www.chess.com"]

[Event "Titled Tuesday Blitz July 6 2021"]
[White "Nathan, Nitish"]
[Black "Przybylski, Wojciech"]
[WhiteFideId "30927870"]
[BlackFideId "1117599"]
[WhiteElo "2211"]
[BlackElo "2317"]
[Result "0-1"]
[Round "10"]
[TimeControl "180+1"]
[Date "2021.07.06"]
[WhiteClock "0:00:05"]
[BlackClock "0:00:04"]

1. d4 {[%clk 0:03:00]}  Nf6 {[%clk 0:02:57]} 2. Bf4 {[%clk 0:03:00]}  Nd5 {[%clk 0:02:55]} 3. Bg3 {[%clk 0:02:59]}  e6 {[%clk 0:02:54]} 4. e4 {[%clk 0:02:56]}  Nb6 {[%clk 0:02:54]} 5. Nc3 {[%clk 0:02:54]}  h5 {[%clk 0:02:53]} 6. h3 {[%clk 0:02:47]}  h4 {[%clk 0:02:53]} 7. Bh2 {[%clk 0:02:46]}  d6 {[%clk 0:02:50]} 8. Nf3 {[%clk 0:02:46]}  N8d7 {[%clk 0:02:49]} 9. Bb5 {[%clk 0:02:40]}  Be7 {[%clk 0:02:49]} 10. O-O {[%clk 0:02:39]}  a6 {[%clk 0:02:46]} 11. Bd3 {[%clk 0:02:39]}  Nf8 {[%clk 0:02:46]} 12. a4 {[%clk 0:02:38]}  Nbd7 {[%clk 0:02:40]} 13. e5 {[%clk 0:02:38]}  d5 {[%clk 0:02:40]} 14. Ne2 {[%clk 0:02:37]}  c5 {[%clk 0:02:38]} 15. c3 {[%clk 0:02:37]}  c4 {[%clk 0:02:37]} 16. Bc2 {[%clk 0:02:36]}  Nb8 {[%clk 0:02:33]} 17. Nd2 {[%clk 0:02:35]}  Bd7 {[%clk 0:02:31]} 18. f4 {[%clk 0:02:36]}  g6 {[%clk 0:02:30]} 19. Nf3 {[%clk 0:02:33]}  Nc6 {[%clk 0:02:29]} 20. Qe1 {[%clk 0:02:30]}  Na5 {[%clk 0:02:28]} 21. Qf2 {[%clk 0:02:29]}  Qb6 {[%clk 0:02:25]} 22. Rab1 {[%clk 0:02:27]}  Nb3 {[%clk 0:02:23]} 23. Nc1 {[%clk 0:02:23]}  Bxa4 {[%clk 0:02:21]} 24. Nxb3 {[%clk 0:02:22]}  Bxb3 {[%clk 0:02:20]} 25. Bxb3 {[%clk 0:02:22]}  cxb3 {[%clk 0:02:16]} 26. Nd2 {[%clk 0:02:17]}  Rc8 {[%clk 0:02:15]} 27. Qe2 {[%clk 0:02:16]}  a5 {[%clk 0:01:53]} 28. Ra1 {[%clk 0:02:15]}  Ra8 {[%clk 0:01:52]} 29. Ra4 {[%clk 0:02:13]}  Qc6 {[%clk 0:01:31]} 30. Rfa1 {[%clk 0:02:10]}  Bd8 {[%clk 0:01:24]} 31. Nxb3 {[%clk 0:02:07]}  b5 {[%clk 0:01:22]} 32. R4a2 {[%clk 0:02:03]}  a4 {[%clk 0:01:21]} 33. Nc5 {[%clk 0:02:02]}  Bb6 {[%clk 0:01:20]} 34. Nd3 {[%clk 0:02:02]}  Rc8 {[%clk 0:01:17]} 35. Nb4 {[%clk 0:02:02]}  Qc4 {[%clk 0:01:17]} 36. Qxc4 {[%clk 0:02:00]}  dxc4 {[%clk 0:01:15]} 37. Kh1 {[%clk 0:01:58]}  Ba5 {[%clk 0:01:11]} 38. Nc2 {[%clk 0:01:57]}  Nd7 {[%clk 0:01:10]} 39. Ne3 {[%clk 0:01:53]}  Nb6 {[%clk 0:01:10]} 40. Rd1 {[%clk 0:01:51]}  Nd5 {[%clk 0:01:09]} 41. Nxd5 {[%clk 0:01:51]}  exd5 {[%clk 0:01:09]} 42. Re1 {[%clk 0:01:49]}  Kd7 {[%clk 0:01:09]} 43. Bg1 {[%clk 0:01:47]}  Ke6 {[%clk 0:01:08]} 44. Be3 {[%clk 0:01:40]}  Rh5 {[%clk 0:01:07]} 45. Kh2 {[%clk 0:01:38]}  Bc7 {[%clk 0:01:07]} 46. g4 {[%clk 0:01:32]}  hxg3+ {[%clk 0:01:06]} 47. Kxg3 {[%clk 0:01:32]}  Rch8 {[%clk 0:01:05]} 48. Rh1 {[%clk 0:01:33]}  Bd8 {[%clk 0:01:05]} 49. Raa1 {[%clk 0:01:30]}  Kf5 {[%clk 0:01:05]} 50. Rag1 {[%clk 0:01:27]}  Rh4 {[%clk 0:01:03]} 51. Bd2 {[%clk 0:01:23]}  Be7 {[%clk 0:01:02]} 52. Rg2 {[%clk 0:01:16]}  R4h5 {[%clk 0:00:47]} 53. Rgg1 {[%clk 0:01:14]}  Ra8 {[%clk 0:00:45]} 54. Ra1 {[%clk 0:01:07]}  Bh4+ {[%clk 0:00:43]} 55. Kf3 {[%clk 0:01:07]}  Rah8 {[%clk 0:00:43]} 56. Rag1 {[%clk 0:01:04]}  Be7 {[%clk 0:00:42]} 57. Kg3 {[%clk 0:01:03]}  Rb8 {[%clk 0:00:36]} 58. Ra1 {[%clk 0:01:00]}  Ra8 {[%clk 0:00:35]} 59. Kf3 {[%clk 0:00:58]}  Rh4 {[%clk 0:00:34]} 60. Kg3 {[%clk 0:00:56]}  Rh7 {[%clk 0:00:35]} 61. Kf3 {[%clk 0:00:56]}  Rh6 {[%clk 0:00:35]} 62. Kg3 {[%clk 0:00:56]}  Rhh8 {[%clk 0:00:35]} 63. Kf3 {[%clk 0:00:56]}  Bh4 {[%clk 0:00:35]} 64. Rhg1 {[%clk 0:00:44]}  Be7 {[%clk 0:00:31]} 65. Rh1 {[%clk 0:00:44]}  Rh4 {[%clk 0:00:27]} 66. Kg3 {[%clk 0:00:43]}  Rg8 {[%clk 0:00:17]} 67. Kf3 {[%clk 0:00:42]}  Rh5 {[%clk 0:00:17]} 68. Rag1 {[%clk 0:00:40]}  Ra8 {[%clk 0:00:16]} 69. Ra1 {[%clk 0:00:39]}  f6 {[%clk 0:00:16]} 70. exf6 {[%clk 0:00:37]}  Bxf6 {[%clk 0:00:16]} 71. Rh2 {[%clk 0:00:31]}  Re8 {[%clk 0:00:16]} 72. Rg1 {[%clk 0:00:30]}  Re4 {[%clk 0:00:14]} 73. Kf2 {[%clk 0:00:28]}  Rh4 {[%clk 0:00:14]} 74. Rg3 {[%clk 0:00:22]}  Be7 {[%clk 0:00:13]} 75. Rhg2 {[%clk 0:00:22]}  Rh6 {[%clk 0:00:12]} 76. Kf3 {[%clk 0:00:18]}  Bh4 {[%clk 0:00:12]} 77. Rg4 {[%clk 0:00:19]}  Re8 {[%clk 0:00:11]} 78. Bc1 {[%clk 0:00:17]}  Ra8 {[%clk 0:00:10]} 79. Bd2 {[%clk 0:00:16]}  Bf6 {[%clk 0:00:10]} 80. h4 {[%clk 0:00:15]}  Bxh4 {[%clk 0:00:09]} 81. Rh2 {[%clk 0:00:15]}  Rah8 {[%clk 0:00:08]} 82. Rhg2 {[%clk 0:00:15]}  Bf6 {[%clk 0:00:08]} 83. R4g3 {[%clk 0:00:14]}  Rh3 {[%clk 0:00:07]} 84. Ke2 {[%clk 0:00:14]}  Rxg3 {[%clk 0:00:08]} 85. Rxg3 {[%clk 0:00:14]}  Rh2+ {[%clk 0:00:08]} 86. Kd1 {[%clk 0:00:14]}  Bh4 {[%clk 0:00:07]} 87. Rg1 {[%clk 0:00:14]}  Bf6 {[%clk 0:00:06]} 88. Rf1 {[%clk 0:00:13]}  Rh3 {[%clk 0:00:06]} 89. Rg1 {[%clk 0:00:13]}  Rf3 {[%clk 0:00:06]} 90. Rh1 {[%clk 0:00:13]}  Rf2 {[%clk 0:00:05]} 91. Ke1 {[%clk 0:00:13]}  Rg2 {[%clk 0:00:05]} 92. Rf1 {[%clk 0:00:13]}  Bh4+ {[%clk 0:00:05]} 93. Kd1 {[%clk 0:00:13]}  Bf2 {[%clk 0:00:04]} 94. Kc2 {[%clk 0:00:12]}  Bg3 {[%clk 0:00:04]} 95. Kd1 {[%clk 0:00:12]}  Ke4 {[%clk 0:00:04]} 96. Rh1 {[%clk 0:00:10]}  Bxf4 {[%clk 0:00:03]} 97. Bxf4 {[%clk 0:00:08]}  Kxf4 {[%clk 0:00:03]} 98. Kc1 {[%clk 0:00:08]}  Rf2 {[%clk 0:00:03]} 99. Rh4+ {[%clk 0:00:07]}  Kf5 {[%clk 0:00:03]} 100. Rh8 {[%clk 0:00:07]}  Ke4 {[%clk 0:00:02]} 101. Re8+ {[%clk 0:00:07]}  Kd3 {[%clk 0:00:02]} 102. Kb1 {[%clk 0:00:07]}  Rf1+ {[%clk 0:00:02]} 103. Ka2 {[%clk 0:00:07]}  g5 {[%clk 0:00:03]} 104. Rg8 {[%clk 0:00:07]}  Rg1 {[%clk 0:00:02]} 105. Rd8 {[%clk 0:00:07]}  g4 {[%clk 0:00:02]} 106. Rxd5 {[%clk 0:00:07]}  g3 {[%clk 0:00:03]} 107. Rxb5 {[%clk 0:00:07]}  Ke3 {[%clk 0:00:03]} 108. Rg5 {[%clk 0:00:07]}  Kf3 {[%clk 0:00:03]} 109. d5 {[%clk 0:00:07]}  Rd1 {[%clk 0:00:03]} 110. Ka3 {[%clk 0:00:05]}  g2 {[%clk 0:00:04]} 0-1


[Site "https://www.chess.com"]

[Event "Titled Tuesday Blitz July 6 2021"]
[White "Nguyen Hong Nhung"]
[Black "Vyatkin, Dmitry"]
[WhiteFideId "12412201"]
[BlackFideId "4171900"]
[WhiteElo "1661"]
[BlackElo "2279"]
[Result "0-1"]
[Round "10"]
[TimeControl "180+1"]
[Date "2021.07.06"]
[WhiteClock "0:02:07"]
[BlackClock "0:01:14"]

1. e4 {[%clk 0:03:00]}  e6 {[%clk 0:02:59]} 2. d4 {[%clk 0:03:00]}  d5 {[%clk 0:02:59]} 3. Nc3 {[%clk 0:03:00]}  Nf6 {[%clk 0:02:59]} 4. e5 {[%clk 0:03:00]}  Nfd7 {[%clk 0:02:59]} 5. Nce2 {[%clk 0:03:01]}  c5 {[%clk 0:02:58]} 6. c3 {[%clk 0:03:01]}  Nc6 {[%clk 0:02:57]} 7. f4 {[%clk 0:03:01]}  Be7 {[%clk 0:02:57]} 8. Nf3 {[%clk 0:03:01]}  O-O {[%clk 0:02:57]} 9. g3 {[%clk 0:03:02]}  f6 {[%clk 0:02:57]} 10. Bg2 {[%clk 0:02:59]}  cxd4 {[%clk 0:02:49]} 11. cxd4 {[%clk 0:02:58]}  Qb6 {[%clk 0:02:47]} 12. Bh3 {[%clk 0:02:49]}  fxe5 {[%clk 0:02:39]} 13. Bxe6+ {[%clk 0:02:48]}  Kh8 {[%clk 0:02:39]} 14. dxe5 {[%clk 0:02:44]}  Ndxe5 {[%clk 0:02:37]} 15. Nxe5 {[%clk 0:02:40]}  Bxe6 {[%clk 0:02:11]} 16. Nxc6 {[%clk 0:02:36]}  bxc6 {[%clk 0:02:10]} 17. Qb3 {[%clk 0:02:33]}  Bb4+ {[%clk 0:02:02]} 18. Bd2 {[%clk 0:02:27]}  Bxd2+ {[%clk 0:01:56]} 19. Kxd2 {[%clk 0:02:28]}  Qc7 {[%clk 0:01:28]} 20. Nd4 {[%clk 0:02:23]}  Bf7 {[%clk 0:01:21]} 21. Rhe1 {[%clk 0:02:20]}  c5 {[%clk 0:01:19]} 22. Ne6 {[%clk 0:02:20]}  Bxe6 {[%clk 0:01:18]} 23. Rxe6 {[%clk 0:02:21]}  Rab8 {[%clk 0:01:17]} 24. Qc3 {[%clk 0:02:15]}  d4 {[%clk 0:01:16]} 25. Qc2 {[%clk 0:02:15]}  c4 {[%clk 0:01:15]} 26. Rae1 {[%clk 0:02:12]}  Rxb2 {[%clk 0:01:13]} 27. Qxb2 {[%clk 0:02:07]}  c3+ {[%clk 0:01:14]} 28. Kc2 {[%clk 0:02:07]}  cxb2+ {[%clk 0:01:14]} 29. Kxb2 {[%clk 0:02:08]}  Qc3+ {[%clk 0:01:13]} 30. Kb1 {[%clk 0:02:07]}  Rb8+ {[%clk 0:01:14]} 0-1


[Site "https://www.chess.com"]